bitfinex/quotes_ETHUSD_20230102
["timestamp","ask_amount","ask_price","bid_price","bid_amount"]
[1672625197770,9.24191661,1197.1,1197.0,4.849334]
[1672625197999,9.24591661,1197.1,1197.0,4.849334]
[1672625201385,9.24242895,1197.1,1197.0,4.849334]
[1672625201604,9.24242895,1197.1,1197.0,7.349334]
[1672625201943,9.24242895,1197.1,1197.0,7.415334]
[1672625202272,9.24242895,1197.1,1197.0,9.519334]
[1672625202734,5.004,1197.1,1197.0,9.519334]
[1672625209444,5.004,1197.1,1197.0,7.019334]
[1672625210622,4.954,1197.1,1197.0,7.019334]
[1672625210957,4.95,1197.1,1197.0,7.019334]
[1672625211893,4.9,1197.1,1197.0,7.019334]
[1672625216225,9.28902332,1197.1,1197.0,7.019334]
[1672625216392,9.24302332,1197.1,1197.0,7.019334]
[1672625216603,0.004,1197.1,1197.0,7.019334]
[1672625216795,4.38902332,1197.2,1197.0,7.019334]
[1672625217591,5.0,1197.1,1197.0,7.019334]
[1672625217738,5.004,1197.1,1197.0,7.019334]
[1672625219350,9.39302332,1197.1,1197.0,7.019334]
[1672625221205,5.004,1197.1,1197.0,7.019334]
[1672625221522,9.39302332,1197.1,1197.0,7.019334]
[1672625222154,5.004,1197.1,1197.0,7.019334]
[1672625223663,0.004,1197.1,1197.0,7.019334]
[1672625223872,4.38902332,1197.2,1197.0,7.019334]
[1672625224464,5.0,1197.1,1197.0,7.019334]
[1672625224676,5.004,1197.1,1197.0,7.019334]
[1672625227469,4.954,1197.1,1197.0,7.019334]
[1672625227657,4.95,1197.1,1197.0,7.019334]
[1672625230568,4.45502332,1197.2,1197.0,7.019334]
[1672625230700,4.38902332,1197.2,1197.0,7.019334]
[1672625231584,5.0,1197.1,1197.0,7.019334]
[1672625231798,5.004,1197.1,1197.0,7.019334]
[1672625232487,4.954,1197.1,1197.0,7.02229503]
[1672625232761,4.95,1197.1,1197.0,7.02229503]
[1672625236453,9.33902332,1197.1,1197.0,7.02229503]
[1672625236603,4.954,1197.1,1197.0,7.02229503]
[1672625236814,4.95,1197.1,1197.0,7.02229503]
[1672625237187,9.33902332,1197.1,1197.0,7.02229503]
[1672625237400,9.34302332,1197.1,1197.0,7.02229503]
[1672625237709,4.39302332,1197.1,1197.0,7.02229503]
[1672625238031,4.45502332,1197.2,1197.0,7.02229503]
[1672625238242,4.38902332,1197.2,1197.0,7.02229503]
[1672625238769,5.0,1197.1,1197.0,7.02229503]
[1672625238976,5.004,1197.1,1197.0,7.02229503]
[1672625240444,9.39302332,1197.1,1197.0,7.02229503]
[1672625241875,5.004,1197.1,1197.0,7.02229503]
[1672625242134,9.39302332,1197.1,1197.0,7.02229503]
[1672625243190,5.004,1197.1,1197.0,7.02229503]
[1672625244070,4.954,1197.1,1197.0,7.02229503]
[1672625244281,4.95,1197.1,1197.0,7.02229503]
[1672625244760,4.45502332,1197.2,1197.0,7.02229503]
[1672625245078,4.38902332,1197.2,1197.0,7.02229503]
[1672625245969,5.0,1197.1,1197.0,7.02229503]
[1672625246179,9.39302332,1197.1,1197.0,7.02229503]
[1672625247142,5.004,1197.1,1197.0,7.02229503]
[1672625251025,9.39302332,1197.1,1197.0,7.02229503]
[1672625251912,4.39302332,1197.1,1197.0,7.02229503]
[1672625252235,4.45502332,1197.2,1197.0,7.02229503]
[1672625252407,4.38902332,1197.2,1197.0,7.02229503]
[1672625252618,5.0,1197.1,1197.0,7.02229503]
[1672625252846,5.004,1197.1,1197.0,7.02229503]
[1672625253481,9.39302332,1197.1,1197.0,7.02229503]
[1672625258725,4.39302332,1197.1,1197.0,7.02229503]
[1672625259052,4.38902332,1197.1,1197.0,7.02229503]
[1672625259435,9.38902332,1197.1,1197.0,7.02229503]
[1672625259668,9.39302332,1197.1,1197.0,7.02229503]
[1672625264342,9.39302332,1197.1,1197.0,5.81110833]
[1672625264564,9.39302332,1197.1,1197.0,3.7041473]
[1672625264720,9.39302332,1197.1,1197.0,3.6381473]
[1672625270964,4.39302332,1197.1,1197.0,3.6381473]
[1672625271153,4.38902332,1197.1,1197.0,3.6381473]
[1672625272232,9.38902332,1197.1,1197.0,3.6381473]
[1672625272425,9.39302332,1197.1,1197.0,3.6381473]
[1672625276007,9.3938092,1197.1,1197.0,3.6381473]
[1672625280899,9.3938092,1197.1,1197.0,3.38576348]
[1672625282407,4.3938092,1197.1,1197.0,3.38576348]
[1672625282624,4.3898092,1197.1,1197.0,3.38576348]
[1672625283458,9.3898092,1197.1,1197.0,3.38576348]
[1672625283632,9.3938092,1197.1,1197.0,3.38576348]
[1672625285048,9.3938092,1197.1,1197.0,3.38240078]
[1672625295506,4.3938092,1197.1,1197.0,3.38240078]
[1672625295715,4.3898092,1197.1,1197.0,3.38240078]
[1672625296149,5.25271835,1197.2,1197.0,3.38240078]
[1672625296505,5.0,1197.1,1197.0,3.38240078]
[1672625296715,9.39473797,1197.1,1197.0,3.38240078]
[1672625299452,5.004,1197.1,1197.0,3.38240078]
[1672625300168,9.3948974,1197.1,1197.0,3.38240078]
[1672625300714,5.004,1197.1,1197.0,3.38240078]
[1672625300880,9.39526091,1197.1,1197.0,3.38240078]
[1672625302335,4.39526091,1197.1,1197.0,3.38240078]
[1672625302663,5.25271835,1197.2,1197.0,3.38240078]
[1672625302869,4.39162766,1197.1,1197.0,3.38240078]
[1672625303429,5.0,1197.1,1197.0,3.38240078]
[1672625303607,5.004,1197.1,1197.0,3.38240078]
[1672625303811,9.39565062,1197.1,1197.0,3.38240078]
[1672625305024,10.19071835,1197.1,1197.0,3.6347846]
[1672625307110,10.19071835,1197.1,1197.0,3.6318796]
[1672625310268,6.71403725,1197.1,1197.0,3.37949578]
[1672625310479,6.71403725,1197.1,1197.0,0.42389987]
[1672625310689,6.71403725,1197.1,1196.9,3.0]
[1672625310947,5.0,1197.0,1196.9,3.0]
[1672625311160,5.004,1197.0,1196.9,3.0]
[1672625311374,5.004,1197.0,1196.8,10.93939229]
[1672625311375,10.04867953,1197.0,1196.8,10.93939229]
[1672625311523,7.68677761,1196.9,1196.8,0.066]
[1672625311732,7.69077761,1196.9,1196.7,0.48789378]
[1672625311944,15.35949874,1196.9,1196.7,0.42189378]
[1672625312202,15.35949874,1196.9,1196.6,8.96848442]
[1672625312203,5.18677761,1196.8,1196.6,8.96848442]
[1672625312416,4.39107693,1196.7,1196.6,8.96848442]
[1672625312626,4.39107693,1196.7,1196.6,1.36138442]
[1672625312837,5.0,1196.7,1196.6,1.29538442]
[1672625313071,5.004,1196.7,1196.6,4.29538442]
[1672625320180,0.004,1196.7,1196.6,6.79538442]
[1672625320403,14.71729806,1196.9,1196.6,6.86138442]
[1672625320620,14.71729806,1196.9,1196.6,4.36138442]
[1672625320832,14.71729806,1196.9,1196.6,4.29538442]
[1672625320998,5.0,1196.7,1196.6,4.29538442]
[1672625321211,5.004,1196.7,1196.6,4.29538442]
[1672625327145,0.004,1196.7,1196.6,6.79538442]
[1672625327359,14.71729806,1196.9,1196.6,4.36138442]
[1672625327572,14.71729806,1196.9,1196.6,4.29538442]
[1672625327781,14.71729806,1196.9,1196.6,6.79538442]
[1672625328089,5.0,1196.7,1196.6,4.36138442]
[1672625328241,5.004,1196.7,1196.6,4.29538442]
[1672625329777,5.004,1196.7,1196.6,4.29272603]
[1672625333454,5.004,1196.7,1196.6,6.79272603]
[1672625333606,5.004,1196.7,1196.6,4.35872603]
[1672625333820,5.004,1196.7,1196.6,4.29272603]
[1672625334022,0.004,1196.7,1196.6,4.29272603]
[1672625334233,14.71729806,1196.9,1196.6,6.79272603]
[1672625334555,14.71729806,1196.9,1196.6,4.35872603]
[1672625334798,14.71729806,1196.9,1196.6,4.29272603]
[1672625335240,5.0,1196.7,1196.6,4.29272603]
[1672625335430,5.004,1196.7,1196.6,4.29272603]
[1672625341105,0.004,1196.7,1196.6,4.29272603]
[1672625341441,5.0,1196.7,1196.6,4.29272603]
[1672625341643,5.004,1196.7,1196.6,4.29272603]
[1672625347341,0.004,1196.7,1196.6,4.29272603]
[1672625347550,4.39107693,1196.8,1196.6,4.29272603]
[1672625347867,5.796199,1196.8,1196.6,4.29272603]
[1672625348100,5.800199,1196.8,1196.6,4.29272603]
[1672625348441,5.0,1196.7,1196.6,4.29272603]
[1672625348605,5.00087379,1196.7,1196.6,6.79272603]
[1672625348795,5.00087379,1196.7,1196.6,4.35872603]
[1672625349010,5.00087379,1196.7,1196.6,4.29272603]
[1672625350954,9.39195072,1196.7,1196.6,4.29272603]
[1672625352890,5.00087379,1196.7,1196.6,4.29272603]
[1672625353307,9.39195072,1196.7,1196.6,4.29272603]
[1672625354272,4.39507693,1196.7,1196.6,4.29272603]
[1672625354469,5.24877761,1196.8,1196.6,4.29272603]
[1672625354470,4.45707693,1196.8,1196.6,4.29272603]
[1672625354674,4.39107693,1196.7,1196.6,4.29272603]
[1672625355409,9.39107693,1196.7,1196.6,4.29272603]
[1672625355691,9.39507693,1196.7,1196.6,4.29272603]
[1672625361388,4.39507693,1196.7,1196.6,4.29272603]
[1672625361528,4.39107693,1196.7,1196.6,4.29272603]
[1672625362272,9.39107693,1196.7,1196.6,4.29272603]
[1672625362485,9.39507693,1196.7,1196.6,4.29272603]
[1672625366171,5.004,1196.7,1196.6,4.29272603]
[1672625366401,9.39507693,1196.7,1196.6,4.29272603]
[1672625368358,4.39507693,1196.7,1196.6,4.29272603]
[1672625368604,4.39107693,1196.7,1196.6,4.29272603]
[1672625369230,9.39107693,1196.7,1196.6,4.29272603]
[1672625369436,9.39507693,1196.7,1196.6,4.29272603]
[1672625370513,5.004,1196.7,1196.6,4.29272603]
[1672625371472,9.39507693,1196.7,1196.6,4.29272603]
[1672625371653,5.004,1196.7,1196.6,4.29272603]
[1672625371865,9.39507693,1196.7,1196.6,4.29272603]
[1672625372071,5.004,1196.7,1196.6,4.29272603]
[1672625372476,5.004,1196.7,1196.6,4.29027535]
[1672625372705,5.006,1196.7,1196.6,4.29027535]
[1672625372882,5.004,1196.7,1196.6,4.29027535]
[1672625374011,5.004,1196.7,1196.6,6.79027535]
[1672625374194,5.004,1196.7,1196.6,6.85627535]
[1672625378397,5.004,1196.7,1196.6,4.35627535]
[1672625378608,5.004,1196.7,1196.6,4.29027535]
[1672625381217,10.34078462,1196.7,1196.6,4.12594208]
[1672625388958,4.39507693,1196.7,1196.6,4.12594208]
[1672625389230,4.39107693,1196.7,1196.6,4.12594208]
[1672625389374,4.45707693,1196.8,1196.6,4.12594208]
[1672625389589,4.39107693,1196.8,1196.6,4.12594208]
[1672625389797,5.0,1196.7,1196.6,4.12594208]
[1672625390146,5.004,1196.7,1196.6,4.12594208]
[1672625392175,9.39507693,1196.7,1196.6,4.12594208]
[1672625392754,5.004,1196.7,1196.6,4.12594208]
[1672625393221,9.39507693,1196.7,1196.6,4.12594208]
[1672625393535,5.004,1196.7,1196.6,4.12594208]
[1672625393744,9.39507693,1196.7,1196.6,4.12594208]
[1672625394058,5.004,1196.7,1196.6,4.12594208]
[1672625394691,9.39507693,1196.7,1196.6,4.12594208]
[1672625395902,4.39507693,1196.7,1196.6,4.12594208]
[1672625396114,4.39107693,1196.7,1196.6,4.12594208]
[1672625396943,9.39107693,1196.7,1196.6,4.12594208]
[1672625397257,9.39507693,1196.7,1196.6,4.12336007]
[1672625401027,6.46838545,1196.7,1196.6,4.12336007]
[1672625401178,11.65516306,1196.7,1196.6,4.12336007]
[1672625403252,6.46838545,1196.7,1196.6,4.12336007]
[1672625403387,11.65516306,1196.7,1196.6,4.12336007]
[1672625403827,6.46838545,1196.7,1196.6,4.12336007]
[1672625404263,11.65516306,1196.7,1196.6,4.12336007]
[1672625404704,6.46838545,1196.7,1196.6,4.12336007]
[1672625404910,10.85733126,1196.7,1196.6,4.12336007]
[1672625406245,6.46838545,1196.7,1196.6,4.12336007]
[1672625406875,10.85716837,1196.7,1196.6,4.12336007]
[1672625408701,5.85716837,1196.7,1196.6,4.12336007]
[1672625409594,10.85716837,1196.7,1196.6,4.12336007]
[1672625415569,5.85716837,1196.7,1196.6,4.12336007]
[1672625415860,5.85716837,1196.7,1196.6,3.87355826]
[1672625416454,10.85716837,1196.7,1196.6,3.87355826]
[1672625417435,6.46838545,1196.7,1196.6,3.87355826]
[1672625417643,10.85712475,1196.7,1196.6,3.87355826]
[1672625420551,9.39197074,1196.7,1196.6,3.87355826]
[1672625422631,4.39197074,1196.7,1196.6,3.87355826]
[1672625422842,4.3887393,1196.7,1196.6,3.87355826]
[1672625423541,9.3887393,1196.7,1196.6,3.87355826]
[1672625423683,9.39197074,1196.7,1196.6,3.87355826]
[1672625424212,9.39197074,1196.7,1196.6,6.14011547]
[1672625424425,9.39197074,1196.7,1196.6,6.20611547]
[1672625426308,9.39197074,1196.7,1196.6,4.19194208]
[1672625426517,9.39197074,1196.7,1196.6,4.12594208]
[1672625430967,4.39197074,1196.7,1196.6,4.12594208]
[1672625431213,4.3887393,1196.7,1196.6,4.12594208]
[1672625431985,9.3887393,1196.7,1196.6,4.12594208]
[1672625432341,9.39197074,1196.7,1196.6,4.12594208]
[1672625438116,4.39197074,1196.7,1196.6,4.12594208]
[1672625438328,4.3887393,1196.7,1196.6,4.12594208]
[1672625439064,9.3887393,1196.7,1196.6,4.12594208]
[1672625439274,9.39197074,1196.7,1196.6,4.12594208]
[1672625444327,9.39197074,1196.7,1196.6,4.12293345]
[1672625445121,4.39197074,1196.7,1196.6,4.12293345]
[1672625445277,4.3887393,1196.7,1196.6,4.12293345]
[1672625446017,9.3887393,1196.7,1196.6,4.12293345]
[1672625446239,9.39197074,1196.7,1196.6,4.12293345]
[1672625452104,4.39197074,1196.7,1196.6,4.12293345]
[1672625452373,4.3887393,1196.7,1196.6,4.12293345]
[1672625453110,9.3887393,1196.7,1196.6,4.12293345]
[1672625453437,9.39197074,1196.7,1196.6,4.12293345]
[1672625455004,9.39197074,1196.7,1196.6,6.62293345]
[1672625455151,9.39197074,1196.7,1196.6,6.68893345]
[1672625455892,9.39197074,1196.7,1196.6,4.18893345]
[1672625456145,9.39197074,1196.7,1196.6,4.12293345]
[1672625458122,9.39397074,1196.7,1196.6,4.12293345]
[1672625458332,9.39197074,1196.7,1196.6,4.12293345]
[1672625461645,9.39197074,1196.7,1196.6,6.62293345]
[1672625461961,9.39197074,1196.7,1196.6,4.18893345]
[1672625462171,4.39197074,1196.7,1196.6,4.12293345]
[1672625462380,4.3887393,1196.7,1196.6,4.12293345]
[1672625463225,9.3887393,1196.7,1196.6,4.12293345]
[1672625463395,9.39197074,1196.7,1196.6,4.12293345]
[1672625465354,9.39197074,1196.7,1196.6,6.62293345]
[1672625465561,9.39197074,1196.7,1196.6,4.18893345]
[1672625465720,9.39197074,1196.7,1196.6,4.12293345]
[1672625468991,9.39197074,1196.7,1196.6,4.12091475]
[1672625469345,4.39197074,1196.7,1196.6,4.12091475]
[1672625469664,4.3887393,1196.7,1196.6,4.12091475]
[1672625470178,9.3887393,1196.7,1196.6,4.12091475]
[1672625470355,9.39197074,1196.7,1196.6,4.12091475]
[1672625471212,9.39197074,1196.7,1196.6,6.62091475]
[1672625471426,9.39197074,1196.7,1196.6,4.18691475]
[1672625471639,9.39197074,1196.7,1196.6,4.12091475]
[1672625476350,4.39197074,1196.7,1196.6,4.12091475]
[1672625476728,4.3887393,1196.7,1196.6,4.12091475]
[1672625477238,9.3887393,1196.7,1196.6,4.12091475]
[1672625477399,9.39197074,1196.7,1196.6,4.12091475]
[1672625479618,5.00323144,1196.7,1196.6,4.12091475]
[1672625479863,10.48362336,1196.7,1196.6,4.12091475]
[1672625480264,6.09121235,1196.7,1196.6,4.12091475]
[1672625480473,10.48369838,1196.7,1196.6,4.12091475]
[1672625487259,9.39571747,1196.7,1196.6,4.12091475]
[1672625487619,8.76707791,1196.7,1196.6,7.93382432]
[1672625487986,8.76707791,1196.7,1196.6,8.91393855]
[1672625491187,8.76707791,1196.7,1196.6,11.74989012]
[1672625491524,8.76707791,1196.7,1196.6,11.97989012]
[1672625491737,8.76707791,1196.7,1196.6,14.38732359]
[1672625493038,8.76707791,1196.7,1196.6,14.38348438]
[1672625494504,8.76707791,1196.7,1196.6,16.48248438]
[1672625500340,8.76707791,1196.7,1196.6,11.57505091]
[1672625500588,3.76707791,1196.7,1196.6,11.57505091]
[1672625500902,8.76384647,1196.7,1196.6,11.57505091]
[1672625501120,8.76707791,1196.7,1196.6,11.57505091]
[1672625506441,8.76707791,1196.7,1196.6,11.32266709]
[1672625506648,8.76707791,1196.7,1196.6,11.57505091]
[1672625506649,3.76707791,1196.7,1196.6,11.57505091]
[1672625506892,3.76384647,1196.7,1196.6,11.57505091]
[1672625507703,8.76384647,1196.7,1196.6,11.57505091]
[1672625508034,8.76707791,1196.7,1196.6,11.57505091]
[1672625512746,5.00323144,1196.7,1196.6,11.57505091]
[1672625512955,5.00323144,1196.7,1196.6,13.73016689]
[1672625513818,0.00323144,1196.7,1196.6,13.73016689]
[1672625514030,3.76384647,1196.8,1196.6,13.73016689]
[1672625514352,3.76384647,1196.8,1196.6,11.57191734]
[1672625514907,5.0,1196.7,1196.6,11.57191734]
[1672625515122,4.99979091,1196.7,1196.6,11.57191734]
[1672625515338,4.99655947,1196.7,1196.6,11.57191734]
[1672625515695,8.76040594,1196.7,1196.6,11.57191734]
[1672625515966,8.76363738,1196.7,1196.6,11.57191734]
[1672625517482,4.99979091,1196.7,1196.6,11.57191734]
[1672625517693,4.99655947,1196.7,1196.6,13.72985353]
[1672625519491,8.76040594,1196.7,1196.6,13.72985353]
[1672625519721,4.99979091,1196.7,1196.6,13.72985353]
[1672625519953,4.99655947,1196.7,1196.6,13.72985353]
[1672625520796,3.82907791,1196.8,1196.6,13.72985353]
[1672625520983,3.76384647,1196.8,1196.6,11.57191734]
[1672625521845,5.0,1196.7,1196.6,11.57191734]
[1672625522061,8.76707791,1196.7,1196.6,11.57191734]
[1672625522421,5.00323144,1196.7,1196.6,11.57191734]
[1672625529468,0.00323144,1196.7,1196.6,11.57191734]
[1672625529679,3.76384647,1196.8,1196.7,2.5]
[1672625529945,3.76384647,1196.8,1196.7,15.82353826]
[1672625530155,11.48257791,1196.9,1196.7,13.20135919]
[1672625530471,11.42057791,1196.9,1196.8,2.092]
[1672625530640,11.42057791,1196.9,1196.8,5.092]
[1672625530995,11.42057791,1196.9,1196.8,5.41038382]
[1672625531210,3.76707791,1196.9,1196.8,5.41038382]
[1672625531353,3.76384647,1196.9,1196.8,5.41038382]
[1672625534971,3.71384647,1196.9,1196.8,8.19958631]
[1672625538490,5.0,1196.9,1196.8,8.19958631]
[1672625538645,0.00323144,1196.9,1196.8,8.19958631]
[1672625538854,12.83651747,1197.1,1196.8,8.19958631]
[1672625539067,12.77451747,1197.1,1196.8,5.41038382]
[1672625539493,5.0,1196.9,1196.8,5.41038382]
[1672625539712,5.00323144,1196.9,1196.8,5.41038382]
[1672625540956,8.7609592,1196.9,1196.8,5.41038382]
[1672625542170,5.00323144,1196.9,1196.8,5.41038382]
[1672625542315,5.00323144,1196.9,1196.8,8.19884197]
[1672625542528,5.00323144,1196.9,1196.8,13.66061268]
[1672625542738,5.00323144,1196.9,1196.8,34.06233691]
[1672625543078,5.00323144,1196.9,1196.8,54.62823403]
[1672625543318,5.00323144,1196.9,1196.8,54.63567674]
[1672625544320,0.00323144,1196.9,1196.8,54.63567674]
[1672625544533,5.0,1197.0,1196.9,2.5]
[1672625544755,5.00323144,1197.0,1196.9,25.21577781]
[1672625545002,5.00323144,1197.0,1196.9,26.44827586]
[1672625548268,5.00323144,1197.0,1196.9,15.98936586]
[1672625548481,0.00323144,1197.0,1196.9,15.98936586]
[1672625548653,11.4645592,1197.2,1196.9,15.98936586]
[1672625548867,3.75772776,1197.1,1196.9,15.98936586]
[1672625549072,3.75772776,1197.1,1197.0,2.096]
[1672625549413,8.75772776,1197.1,1197.0,5.34838382]
[1672625549582,8.7609592,1197.1,1197.0,5.41438382]
[1672625550010,5.00323144,1197.1,1197.0,5.41438382]
[1672625551789,8.7609592,1197.1,1197.0,5.41438382]
[1672625552331,8.7609592,1197.1,1197.0,5.82933619]
[1672625554150,8.7629592,1197.1,1197.0,7.67811222]
[1672625554319,8.7609592,1197.1,1197.0,7.68011222]
[1672625554534,5.00323144,1197.1,1197.0,11.99331493]
[1672625554990,5.00323144,1197.1,1197.0,13.13376608]
[1672625555537,5.00323144,1197.1,1197.0,11.28299005]
[1672625559076,5.00323144,1197.1,1197.0,9.19065313]
[1672625562330,9.39571747,1197.1,1197.0,23.26354025]
[1672625562544,5.00323144,1197.1,1197.0,50.87196025]
[1672625562750,9.39571747,1197.1,1197.0,59.11478668]
[1672625562963,5.00323144,1197.1,1197.0,59.11478668]
[1672625563795,5.00323144,1197.1,1197.0,64.13378668]
[1672625564369,0.00323144,1197.1,1197.0,64.13378668]
[1672625564578,0.002,1197.1,1197.0,64.13178668]
[1672625564787,3.12873004,1197.3,1197.1,11.298]
[1672625565004,3.12873004,1197.3,1197.2,6.47586114]
[1672625565153,5.0,1197.3,1197.2,8.38135919]
[1672625565359,8.13058511,1197.3,1197.2,4.23249805]
[1672625565738,5.00323144,1197.3,1197.2,4.16649805]
[1672625565909,8.75777235,1197.3,1197.2,4.16649805]
[1672625566257,8.1305526,1197.3,1197.2,8.31535919]
[1672625566447,8.1305526,1197.3,1197.2,8.38135919]
[1672625567510,8.1305526,1197.3,1197.2,9.55149227]
[1672625570198,3.1305526,1197.3,1197.2,9.55149227]
[1672625570402,3.12732116,1197.3,1197.2,9.55149227]
[1672625571279,8.12732116,1197.3,1197.2,9.55149227]
[1672625571468,8.1305526,1197.3,1197.2,9.55149227]
[1672625577245,3.1305526,1197.3,1197.2,9.55149227]
[1672625577453,3.12732116,1197.3,1197.2,9.55149227]
[1672625578310,8.12732116,1197.3,1197.2,9.54831706]
[1672625578661,8.1305526,1197.3,1197.2,9.54831706]
[1672625584205,3.1305526,1197.3,1197.2,9.54831706]
[1672625584413,3.12732116,1197.3,1197.2,9.54831706]
[1672625584867,3.1925526,1197.4,1197.2,9.54831706]
[1672625585082,3.12732116,1197.4,1197.2,9.54831706]
[1672625585358,5.0,1197.3,1197.2,9.29593324]
[1672625585607,4.75084762,1197.3,1197.2,9.29593324]
[1672625585822,7.87493734,1197.3,1197.2,9.54831706]
[1672625585978,4.75084762,1197.3,1197.2,9.54831706]
[1672625586192,7.87493734,1197.3,1197.2,9.54831706]
[1672625586417,4.75084762,1197.3,1197.2,9.54831706]
[1672625586653,7.87493734,1197.3,1197.2,9.54831706]
[1672625586917,7.87816878,1197.3,1197.2,9.54831706]
[1672625591387,3.1305526,1197.3,1197.2,9.54831706]
[1672625591715,3.12732116,1197.3,1197.2,9.54831706]
[1672625592346,8.12732116,1197.3,1197.2,9.54831706]
[1672625592514,8.1305526,1197.3,1197.2,9.54831706]
[1672625597829,8.1305526,1197.3,1197.2,29.56471663]
[1672625598043,4.83524972,1197.3,1197.2,52.90221375]
[1672625598231,4.83201828,1197.3,1197.2,52.90221375]
[1672625599231,0.06523144,1197.4,1197.2,52.90221375]
[1672625599437,10.6891526,1197.5,1197.3,17.33298114]
[1672625599689,10.6891526,1197.5,1197.4,9.23286114]
[1672625599798,8.1305526,1197.5,1197.4,9.55124496]
[1672625600012,8.1305526,1197.5,1197.4,10.46535919]
[1672625601440,8.1305526,1197.5,1197.4,10.48539439]
[1672625601596,8.1305526,1197.5,1197.4,14.98966092]
[1672625602700,8.75777235,1197.5,1197.4,14.98966092]
[1672625605288,8.75777235,1197.5,1197.4,15.40430787]
[1672625606508,3.75777235,1197.5,1197.4,15.40430787]
[1672625606650,3.75454091,1197.5,1197.4,15.40430787]
[1672625607179,8.75454091,1197.5,1197.4,15.40430787]
[1672625607390,8.75777235,1197.5,1197.4,15.40430787]
[1672625608518,8.75777235,1197.5,1197.4,16.86306744]
[1672625608733,8.75777235,1197.5,1197.4,34.53474456]
[1672625608897,5.00323144,1197.5,1197.4,36.63674456]
[1672625609114,5.00323144,1197.5,1197.4,61.69100456]
[1672625609940,0.00323144,1197.5,1197.4,61.69100456]
[1672625610216,3.12962186,1197.6,1197.5,11.298]
[1672625610518,3.81977235,1197.7,1197.5,11.298]
[1672625610519,3.1948533,1197.7,1197.5,58.18182872]
[1672625610670,3.12962186,1197.7,1197.6,34.74892114]
[1672625610880,3.12962186,1197.7,1197.6,35.04492114]
[1672625611127,3.12962186,1197.7,1197.6,37.44017876]
[1672625611300,3.12962186,1197.7,1197.6,43.40260544]
[1672625611782,3.12962186,1197.7,1197.6,35.05257544]
[1672625612222,3.75454091,1197.7,1197.6,14.57378587]
[1672625612370,3.75454091,1197.7,1197.6,4.23249805]
[1672625612581,3.75454091,1197.7,1197.6,4.16649805]
[1672625612844,3.75654091,1197.7,1197.6,4.16649805]
[1672625613014,4.75992145,1197.8,1197.6,4.16649805]
[1672625613015,4.12397633,1197.8,1197.6,4.16649805]
[1672625613226,4.05874489,1197.8,1197.6,6.66649805]
[1672625613444,4.05874489,1197.8,1197.6,6.73249805]
[1672625614531,3.75454091,1197.7,1197.6,6.73249805]
[1672625614749,4.12397633,1197.8,1197.6,8.2578579]
[1672625615054,4.05874489,1197.8,1197.6,8.2578579]
[1672625615437,3.12608331,1197.7,1197.6,8.2578579]
[1672625615795,3.12606857,1197.7,1197.6,8.2578579]
[1672625616212,3.12606857,1197.7,1197.6,8.42606961]
[1672625616366,3.12264702,1197.7,1197.6,8.42606961]
[1672625616576,4.12397633,1197.8,1197.6,8.42606961]
[1672625616788,4.05874489,1197.8,1197.6,8.42606961]
[1672625617845,4.05874489,1197.8,1197.6,4.40070976]
[1672625618046,4.05874489,1197.8,1197.6,6.83470976]
[1672625618256,4.05874489,1197.8,1197.6,6.90070976]
[1672625619671,5.0,1197.7,1197.6,4.40070976]
[1672625619991,8.75777235,1197.7,1197.6,4.33470976]
[1672625620146,5.00323144,1197.7,1197.6,4.33470976]
[1672625620564,5.00523144,1197.7,1197.6,4.33470976]
[1672625620779,5.00323144,1197.7,1197.6,4.33470976]
[1672625623890,8.75777235,1197.7,1197.6,4.33470976]
[1672625624073,5.00323144,1197.7,1197.6,4.33470976]
[1672625624537,8.75777235,1197.7,1197.6,4.33470976]
[1672625624767,5.00323144,1197.7,1197.6,4.33470976]
[1672625624920,8.75777235,1197.7,1197.6,4.33470976]
[1672625625132,5.00323144,1197.7,1197.6,4.33470976]
[1672625627393,8.75977235,1197.7,1197.6,4.33470976]
[1672625627542,8.75777235,1197.7,1197.6,4.33470976]
[1672625632228,5.00323144,1197.7,1197.6,4.33470976]
[1672625632459,8.13012096,1197.7,1197.6,4.33470976]
[1672625634836,5.00323144,1197.7,1197.6,4.33470976]
[1672625635149,8.75777235,1197.7,1197.6,5.53312441]
[1672625635500,8.75777235,1197.7,1197.6,5.59912441]
[1672625636082,5.00323144,1197.7,1197.6,5.59912441]
[1672625636292,8.75777235,1197.7,1197.6,5.59912441]
[1672625636748,8.13171702,1197.7,1197.6,13.60266267]
[1672625636916,8.13171702,1197.7,1197.6,13.83266267]
[1672625637130,8.13171702,1197.7,1197.6,32.63136051]
[1672625637388,5.00323144,1197.7,1197.6,41.42936051]
[1672625637985,0.00323144,1197.7,1197.6,41.42936051]
[1672625638175,3.43268956,1197.8,1197.6,33.07933051]
[1672625638386,3.43268956,1197.8,1197.7,4.37886114]
[1672625638595,3.43268956,1197.8,1197.7,13.18679419]
[1672625638806,3.43268956,1197.8,1197.7,14.41929224]
[1672625639072,8.43268956,1197.8,1197.7,14.41929224]
[1672625639296,8.435921,1197.8,1197.7,14.41929224]
[1672625639665,3.435921,1197.8,1197.7,14.41929224]
[1672625640019,0.30420398,1197.8,1197.7,14.41929224]
[1672625640355,0.30420398,1197.8,1197.7,14.42222245]
[1672625641176,4.05874489,1197.8,1197.7,14.42222245]
[1672625641702,5.30420398,1197.8,1197.7,14.42222245]
[1672625641854,8.43651685,1197.8,1197.7,14.42222245]
[1672625642542,5.30743542,1197.8,1197.7,14.42222245]
[1672625643275,9.06197633,1197.8,1197.7,14.42222245]
[1672625643488,9.06197633,1197.8,1197.7,9.02750494]
[1672625644012,9.06197633,1197.8,1197.7,3.73452957]
[1672625644339,9.06197633,1197.8,1197.7,3.66852957]
[1672625644518,9.69992145,1197.8,1197.7,3.41321554]
[1672625644684,14.54736518,1197.8,1197.7,3.41321554]
[1672625644899,14.54736518,1197.8,1197.7,0.41321554]
[1672625645147,14.54736518,1197.8,1197.6,0.16821171]
[1672625645148,9.36058757,1197.8,1197.6,0.16821171]
[1672625645484,9.38252654,1197.7,1197.5,3.25238382]
[1672625645774,9.38252654,1197.7,1197.5,5.75238382]
[1672625645775,3.75647089,1197.6,1197.5,5.75238382]
[1672625645945,3.13027614,1197.6,1197.5,5.81838382]
[1672625646305,8.13027614,1197.6,1197.5,3.31838382]
[1672625646520,8.13350758,1197.6,1197.5,3.25238382]
[1672625646771,8.75970233,1197.6,1197.5,3.25238382]
[1672625647146,5.00323144,1197.6,1197.5,3.25238382]
[1672625648869,8.75970233,1197.6,1197.5,3.25238382]
[1672625652681,5.00323144,1197.6,1197.5,5.75238382]
[1672625652900,8.13485958,1197.6,1197.5,8.20201588]
[1672625654793,8.13485958,1197.6,1197.5,5.70201588]
[1672625655004,5.00323144,1197.6,1197.5,5.70201588]
[1672625655166,5.00323144,1197.6,1197.5,8.20201588]
[1672625657319,8.13475419,1197.6,1197.5,8.20201588]